Workbook

Sheet CONTROL (hidden)
A1: NAME | B1: PASSWORD | C1: PERMISION | D1: active status | E1: admin | F1: DATA | G1: PASSWORD | H1: TEST1 | I1: TEST2 | J1: TEST4 | K1: TEST5 | L1: TEST6 | M1: TEST3 | N1: reset
A2: MOHAMED | B2: 1234567 | C2: ADMINSTRATIVE | D2: ACTIVE | E2: Y | F2: Y | G2: Y | H2: Y | I2: Y | J2: Y | K2: Y | L2: Y | M2: Y | N2: =O2+173 ->  | O2: conv
A3: KNT | B3: knit | C3: USER | D3: ACTIVE | E3: N | F3: N | G3: N | H3: N | I3: Y | J3: N | K3: Y | L3: N | M3: N
A4: DYE | B4: dye | C4: USER | D4: ACTIVE | E4: N | F4: N | G4: N | H4: N | I4: N | J4: N | K4: N | L4: N | M4: Y
A5: CONV | B5: conv | C5: USER | D5: ACTIVE | E5: N | F5: N | G5: N | H5: N | I5: N | J5: Y | K5: N | L5: N | M5: N | N5: N
A6: STOCK | B6: STOCK | C6: USER | D6: ACTIVE | E6: N | F6: N | G6: N | H6: N | I6: N | J6: N | K6: N | L6: Y | M6: N
A7: Mr.Alaa | B7: alaa | C7: ADMINSTRATIVE | D7: ACTIVE | E7: N | F7: N | G7: N | H7: Y | I7: N | J7: N | K7: N | L7: N | M7: N

Sheet DATA (hidden)
A1: NAME | B1: DATE | C1: TIME
A2: AHMAD | B2: 2010-10-17T21:35:05 | C2: 40468.89936
A3: MOHAMED | B3: 2022-12-27T09:48:39 | C3: 44922.40878
A4: MOHAMED | B4: 2022-12-28T13:52:34 | C4: 44923.57817
A5: MOHAMED | B5: 2022-12-28T13:54:37 | C5: 44923.57959
A6: MOHAMED | B6: 2022-12-28T13:56:24 | C6: 44923.58083
A7: MOHAMED | B7: 2022-12-28T14:11:56 | C7: 44923.59162
A8: STOCK | B8: 2022-12-28T14:13:44 | C8: 44923.59287
A9: MOHAMED | B9: 2022-12-28T14:14:01 | C9: 44923.59307
A10: Mr.Alaa | B10: 2023-05-18T13:43:02 | C10: 45064.57155

Sheet ADMIN (hidden)

Sheet Change password

Sheet ALL PRODACTION (hidden)
A1: إنتاج | F1: إنتاج | K1: إنتاج | N1: إنتاج
A2: التاريخ | B2: وردية اولى | C2: وردية ثانية | D2: وردية ثالثة | F2: التاريخ | G2: وردية اولى | H2: وردية ثانية | I2: وردية ثالثة | K2: التاريخ | L2: وردية اولى | N2: التاريخ | O2: الانتاج | Q2: مخزن
A3: 2023-05-01 | B3: =IFERROR(VLOOKUP(A3,KNT!$A$3:$D$33,2,0),"") -> 2023 | C3: =IFERROR(VLOOKUP(A3,KNT!$A$3:$D$33,3,0),"") -> 1947 | D3: =IFERROR(VLOOKUP(A3,KNT!$A$3:$D$33,4,0),"") -> 2028 | F3: 2023-05-01 | G3: =IFERROR(VLOOKUP(F3,DYE!$A$3:$D$33,2,0),"") -> 4484 | H3: =IFERROR(VLOOKUP(F3,DYE!$A$3:$D$33,3,0),"") -> 3814 | I3: =IFERROR(VLOOKUP(F3,DYE!$A$3:$D$33,4,0),"") -> 2786 | K3: 2023-05-01 | L3: =IFERROR(VLOOKUP(K3,CON!$A$3:$B$33,2,0),"") -> 7211 | N3: 2023-05-01 | O3: =IFERROR(VLOOKUP(N3,'EXIT CON'!$A$3:$B$33,2,0),"") -> 6825 | Q3: =STOCK!A2 -> 33151
A4: 2023-05-02 | B4: =IFERROR(VLOOKUP(A4,KNT!$A$3:$D$33,2,0),"") -> 1913 | C4: =IFERROR(VLOOKUP(A4,KNT!$A$3:$D$33,3,0),"") -> 1892 | D4: =IFERROR(VLOOKUP(A4,KNT!$A$3:$D$33,4,0),"") -> 2969 | F4: 2023-05-02 | G4: =IFERROR(VLOOKUP(F4,DYE!$A$3:$D$33,2,0),"") -> 4338 | H4: =IFERROR(VLOOKUP(F4,DYE!$A$3:$D$33,3,0),"") -> 2616 | I4: =IFERROR(VLOOKUP(F4,DYE!$A$3:$D$33,4,0),"") -> 2410 | K4: 2023-05-02 | L4: =IFERROR(VLOOKUP(K4,CON!$A$3:$B$33,2,0),"") -> 8580 | N4: 2023-05-02 | O4: =IFERROR(VLOOKUP(N4,'EXIT CON'!$A$3:$B$33,2,0),"") -> 11653
A5: 2023-05-03 | B5: =IFERROR(VLOOKUP(A5,KNT!$A$3:$D$33,2,0),"") -> 0 | C5: =IFERROR(VLOOKUP(A5,KNT!$A$3:$D$33,3,0),"") -> 0 | D5: =IFERROR(VLOOKUP(A5,KNT!$A$3:$D$33,4,0),"") -> 0 | F5: 2023-05-03 | G5: =IFERROR(VLOOKUP(F5,DYE!$A$3:$D$33,2,0),"") -> 0 | H5: =IFERROR(VLOOKUP(F5,DYE!$A$3:$D$33,3,0),"") -> 0 | I5: =IFERROR(VLOOKUP(F5,DYE!$A$3:$D$33,4,0),"") -> 0 | K5: 2023-05-03 | L5: =IFERROR(VLOOKUP(K5,CON!$A$3:$B$33,2,0),"") -> 0 | N5: 2023-05-03 | O5: =IFERROR(VLOOKUP(N5,'EXIT CON'!$A$3:$B$33,2,0),"") -> 0 | Q5: مخزن
A6: 2023-05-04 | B6: =IFERROR(VLOOKUP(A6,KNT!$A$3:$D$33,2,0),"") -> 0 | C6: =IFERROR(VLOOKUP(A6,KNT!$A$3:$D$33,3,0),"") -> 0 | D6: =IFERROR(VLOOKUP(A6,KNT!$A$3:$D$33,4,0),"") -> 0 | F6: 2023-05-04 | G6: =IFERROR(VLOOKUP(F6,DYE!$A$3:$D$33,2,0),"") -> 0 | H6: =IFERROR(VLOOKUP(F6,DYE!$A$3:$D$33,3,0),"") -> 0 | I6: =IFERROR(VLOOKUP(F6,DYE!$A$3:$D$33,4,0),"") -> 0 | K6: 2023-05-04 | L6: =IFERROR(VLOOKUP(K6,CON!$A$3:$B$33,2,0),"") -> 0 | N6: 2023-05-04 | O6: =IFERROR(VLOOKUP(N6,'EXIT CON'!$A$3:$B$33,2,0),"") -> 0 | Q6: =STOCK!A8 -> 294497.12
A7: 2023-05-05 | B7: =IFERROR(VLOOKUP(A7,KNT!$A$3:$D$33,2,0),"") -> 0 | C7: =IFERROR(VLOOKUP(A7,KNT!$A$3:$D$33,3,0),"") -> 0 | D7: =IFERROR(VLOOKUP(A7,KNT!$A$3:$D$33,4,0),"") -> 0 | F7: 2023-05-05 | G7: =IFERROR(VLOOKUP(F7,DYE!$A$3:$D$33,2,0),"") -> 0 | H7: =IFERROR(VLOOKUP(F7,DYE!$A$3:$D$33,3,0),"") -> 0 | I7: =IFERROR(VLOOKUP(F7,DYE!$A$3:$D$33,4,0),"") -> 0 | K7: 2023-05-05 | L7: =IFERROR(VLOOKUP(K7,CON!$A$3:$B$33,2,0),"") -> 0 | N7: 2023-05-05 | O7: =IFERROR(VLOOKUP(N7,'EXIT CON'!$A$3:$B$33,2,0),"") -> 0
A8: 2023-05-06 | B8: =IFERROR(VLOOKUP(A8,KNT!$A$3:$D$33,2,0),"") -> 0 | C8: =IFERROR(VLOOKUP(A8,KNT!$A$3:$D$33,3,0),"") -> 0 | D8: =IFERROR(VLOOKUP(A8,KNT!$A$3:$D$33,4,0),"") -> 0 | F8: 2023-05-06 | G8: =IFERROR(VLOOKUP(F8,DYE!$A$3:$D$33,2,0),"") -> 0 | H8: =IFERROR(VLOOKUP(F8,DYE!$A$3:$D$33,3,0),"") -> 0 | I8: =IFERROR(VLOOKUP(F8,DYE!$A$3:$D$33,4,0),"") -> 0 | K8: 2023-05-06 | L8: =IFERROR(VLOOKUP(K8,CON!$A$3:$B$33,2,0),"") -> 0 | N8: 2023-05-06 | O8: =IFERROR(VLOOKUP(N8,'EXIT CON'!$A$3:$B$33,2,0),"") -> 0 | Q8: مخزن
A9: 2023-05-07 | B9: =IFERROR(VLOOKUP(A9,KNT!$A$3:$D$33,2,0),"") -> 0 | C9: =IFERROR(VLOOKUP(A9,KNT!$A$3:$D$33,3,0),"") -> 0 | D9: =IFERROR(VLOOKUP(A9,KNT!$A$3:$D$33,4,0),"") -> 0 | F9: 2023-05-07 | G9: =IFERROR(VLOOKUP(F9,DYE!$A$3:$D$33,2,0),"") -> 0 | H9: =IFERROR(VLOOKUP(F9,DYE!$A$3:$D$33,3,0),"") -> 0 | I9: =IFERROR(VLOOKUP(F9,DYE!$A$3:$D$33,4,0),"") -> 0 | K9: 2023-05-07 | L9: =IFERROR(VLOOKUP(K9,CON!$A$3:$B$33,2,0),"") -> 0 | N9: 2023-05-07 | O9: =IFERROR(VLOOKUP(N9,'EXIT CON'!$A$3:$B$33,2,0),"") -> 0 | Q9: =STOCK!A5 -> 502709
A10: 2023-05-08 | B10: =IFERROR(VLOOKUP(A10,KNT!$A$3:$D$33,2,0),"") -> 0 | C10: =IFERROR(VLOOKUP(A10,KNT!$A$3:$D$33,3,0),"") -> 0 | D10: =IFERROR(VLOOKUP(A10,KNT!$A$3:$D$33,4,0),"") -> 0 | F10: 2023-05-08 | G10: =IFERROR(VLOOKUP(F10,DYE!$A$3:$D$33,2,0),"") -> 0 | H10: =IFERROR(VLOOKUP(F10,DYE!$A$3:$D$33,3,0),"") -> 0 | I10: =IFERROR(VLOOKUP(F10,DYE!$A$3:$D$33,4,0),"") -> 0 | K10: 2023-05-08 | L10: =IFERROR(VLOOKUP(K10,CON!$A$3:$B$33,2,0),"") -> 0 | N10: 2023-05-08 | O10: =IFERROR(VLOOKUP(N10,'EXIT CON'!$A$3:$B$33,2,0),"") -> 0
A11: 2023-05-09 | B11: =IFERROR(VLOOKUP(A11,KNT!$A$3:$D$33,2,0),"") -> 0 | C11: =IFERROR(VLOOKUP(A11,KNT!$A$3:$D$33,3,0),"") -> 0 | D11: =IFERROR(VLOOKUP(A11,KNT!$A$3:$D$33,4,0),"") -> 0 | F11: 2023-05-09 | G11: =IFERROR(VLOOKUP(F11,DYE!$A$3:$D$33,2,0),"") -> 0 | H11: =IFERROR(VLOOKUP(F11,DYE!$A$3:$D$33,3,0),"") -> 0 | I11: =IFERROR(VLOOKUP(F11,DYE!$A$3:$D$33,4,0),"") -> 0 | K11: 2023-05-09 | L11: =IFERROR(VLOOKUP(K11,CON!$A$3:$B$33,2,0),"") -> 0 | N11: 2023-05-09 | O11: =IFERROR(VLOOKUP(N11,'EXIT CON'!$A$3:$B$33,2,0),"") -> 0 | Q11: مخزن
A12: 2023-05-10 | B12: =IFERROR(VLOOKUP(A12,KNT!$A$3:$D$33,2,0),"") -> 0 | C12: =IFERROR(VLOOKUP(A12,KNT!$A$3:$D$33,3,0),"") -> 0 | D12: =IFERROR(VLOOKUP(A12,KNT!$A$3:$D$33,4,0),"") -> 0 | F12: 2023-05-10 | G12: =IFERROR(VLOOKUP(F12,DYE!$A$3:$D$33,2,0),"") -> 0 | H12: =IFERROR(VLOOKUP(F12,DYE!$A$3:$D$33,3,0),"") -> 0 | I12: =IFERROR(VLOOKUP(F12,DYE!$A$3:$D$33,4,0),"") -> 0 | K12: 2023-05-10 | L12: =IFERROR(VLOOKUP(K12,CON!$A$3:$B$33,2,0),"") -> 0 | N12: 2023-05-10 | O12: =IFERROR(VLOOKUP(N12,'EXIT CON'!$A$3:$B$33,2,0),"") -> 0 | Q12: 1
A13: 2023-05-11 | B13: =IFERROR(VLOOKUP(A13,KNT!$A$3:$D$33,2,0),"") -> 0 | C13: =IFERROR(VLOOKUP(A13,KNT!$A$3:$D$33,3,0),"") -> 0 | D13: =IFERROR(VLOOKUP(A13,KNT!$A$3:$D$33,4,0),"") -> 0 | F13: 2023-05-11 | G13: =IFERROR(VLOOKUP(F13,DYE!$A$3:$D$33,2,0),"") -> 0 | H13: =IFERROR(VLOOKUP(F13,DYE!$A$3:$D$33,3,0),"") -> 0 | I13: =IFERROR(VLOOKUP(F13,DYE!$A$3:$D$33,4,0),"") -> 0 | K13: 2023-05-11 | L13: =IFERROR(VLOOKUP(K13,CON!$A$3:$B$33,2,0),"") -> 0 | N13: 2023-05-11 | O13: =IFERROR(VLOOKUP(N13,'EXIT CON'!$A$3:$B$33,2,0),"") -> 0 | Q13: =STOCK!A12 -> 44447
A14: 2023-05-12 | B14: =IFERROR(VLOOKUP(A14,KNT!$A$3:$D$33,2,0),"") -> 0 | C14: =IFERROR(VLOOKUP(A14,KNT!$A$3:$D$33,3,0),"") -> 0 | D14: =IFERROR(VLOOKUP(A14,KNT!$A$3:$D$33,4,0),"") -> 0 | F14: 2023-05-12 | G14: =IFERROR(VLOOKUP(F14,DYE!$A$3:$D$33,2,0),"") -> 0 | H14: =IFERROR(VLOOKUP(F14,DYE!$A$3:$D$33,3,0),"") -> 0 | I14: =IFERROR(VLOOKUP(F14,DYE!$A$3:$D$33,4,0),"") -> 0 | K14: 2023-05-12 | L14: =IFERROR(VLOOKUP(K14,CON!$A$3:$B$33,2,0),"") -> 0 | N14: 2023-05-12 | O14: =IFERROR(VLOOKUP(N14,'EXIT CON'!$A$3:$B$33,2,0),"") -> 0 | Q14: 2
A15: 2023-05-13 | B15: =IFERROR(VLOOKUP(A15,KNT!$A$3:$D$33,2,0),"") -> 0 | C15: =IFERROR(VLOOKUP(A15,KNT!$A$3:$D$33,3,0),"") -> 0 | D15: =IFERROR(VLOOKUP(A15,KNT!$A$3:$D$33,4,0),"") -> 0 | F15: 2023-05-13 | G15: =IFERROR(VLOOKUP(F15,DYE!$A$3:$D$33,2,0),"") -> 0 | H15: =IFERROR(VLOOKUP(F15,DYE!$A$3:$D$33,3,0),"") -> 0 | I15: =IFERROR(VLOOKUP(F15,DYE!$A$3:$D$33,4,0),"") -> 0 | K15: 2023-05-13 | L15: =IFERROR(VLOOKUP(K15,CON!$A$3:$B$33,2,0),"") -> 0 | N15: 2023-05-13 | O15: =IFERROR(VLOOKUP(N15,'EXIT CON'!$A$3:$B$33,2,0),"") -> 0 | Q15: =STOCK!A14 -> 2779
A16: 2023-05-14 | B16: =IFERROR(VLOOKUP(A16,KNT!$A$3:$D$33,2,0),"") -> 0 | C16: =IFERROR(VLOOKUP(A16,KNT!$A$3:$D$33,3,0),"") -> 0 | D16: =IFERROR(VLOOKUP(A16,KNT!$A$3:$D$33,4,0),"") -> 0 | F16: 2023-05-14 | G16: =IFERROR(VLOOKUP(F16,DYE!$A$3:$D$33,2,0),"") -> 0 | H16: =IFERROR(VLOOKUP(F16,DYE!$A$3:$D$33,3,0),"") -> 0 | I16: =IFERROR(VLOOKUP(F16,DYE!$A$3:$D$33,4,0),"") -> 0 | K16: 2023-05-14 | L16: =IFERROR(VLOOKUP(K16,CON!$A$3:$B$33,2,0),"") -> 0 | N16: 2023-05-14 | O16: =IFERROR(VLOOKUP(N16,'EXIT CON'!$A$3:$B$33,2,0),"") -> 0 | Q16: 3
A17: 2023-05-15 | B17: =IFERROR(VLOOKUP(A17,KNT!$A$3:$D$33,2,0),"") -> 0 | C17: =IFERROR(VLOOKUP(A17,KNT!$A$3:$D$33,3,0),"") -> 0 | D17: =IFERROR(VLOOKUP(A17,KNT!$A$3:$D$33,4,0),"") -> 0 | F17: 2023-05-15 | G17: =IFERROR(VLOOKUP(F17,DYE!$A$3:$D$33,2,0),"") -> 0 | H17: =IFERROR(VLOOKUP(F17,DYE!$A$3:$D$33,3,0),"") -> 0 | I17: =IFERROR(VLOOKUP(F17,DYE!$A$3:$D$33,4,0),"") -> 0 | K17: 2023-05-15 | L17: =IFERROR(VLOOKUP(K17,CON!$A$3:$B$33,2,0),"") -> 0 | N17: 2023-05-15 | O17: =IFERROR(VLOOKUP(N17,'EXIT CON'!$A$3:$B$33,2,0),"") -> 0 | Q17: =STOCK!A16 -> 5032
A18: 2023-05-16 | B18: =IFERROR(VLOOKUP(A18,KNT!$A$3:$D$33,2,0),"") -> 0 | C18: =IFERROR(VLOOKUP(A18,KNT!$A$3:$D$33,3,0),"") -> 0 | D18: =IFERROR(VLOOKUP(A18,KNT!$A$3:$D$33,4,0),"") -> 0 | F18: 2023-05-16 | G18: =IFERROR(VLOOKUP(F18,DYE!$A$3:$D$33,2,0),"") -> 0 | H18: =IFERROR(VLOOKUP(F18,DYE!$A$3:$D$33,3,0),"") -> 0 | I18: =IFERROR(VLOOKUP(F18,DYE!$A$3:$D$33,4,0),"") -> 0 | K18: 2023-05-16 | L18: =IFERROR(VLOOKUP(K18,CON!$A$3:$B$33,2,0),"") -> 0 | N18: 2023-05-16 | O18: =IFERROR(VLOOKUP(N18,'EXIT CON'!$A$3:$B$33,2,0),"") -> 0
A19: 2023-05-17 | B19: =IFERROR(VLOOKUP(A19,KNT!$A$3:$D$33,2,0),"") -> 0 | C19: =IFERROR(VLOOKUP(A19,KNT!$A$3:$D$33,3,0),"") -> 0 | D19: =IFERROR(VLOOKUP(A19,KNT!$A$3:$D$33,4,0),"") -> 0 | F19: 2023-05-17 | G19: =IFERROR(VLOOKUP(F19,DYE!$A$3:$D$33,2,0),"") -> 0 | H19: =IFERROR(VLOOKUP(F19,DYE!$A$3:$D$33,3,0),"") -> 0 | I19: =IFERROR(VLOOKUP(F19,DYE!$A$3:$D$33,4,0),"") -> 0 | K19: 2023-05-17 | L19: =IFERROR(VLOOKUP(K19,CON!$A$3:$B$33,2,0),"") -> 0 | N19: 2023-05-17 | O19: =IFERROR(VLOOKUP(N19,'EXIT CON'!$A$3:$B$33,2,0),"") -> 0
A20: 2023-05-18 | B20: =IFERROR(VLOOKUP(A20,KNT!$A$3:$D$33,2,0),"") -> 0 | C20: =IFERROR(VLOOKUP(A20,KNT!$A$3:$D$33,3,0),"") -> 0 | D20: =IFERROR(VLOOKUP(A20,KNT!$A$3:$D$33,4,0),"") -> 0 | F20: 2023-05-18 | G20: =IFERROR(VLOOKUP(F20,DYE!$A$3:$D$33,2,0),"") -> 0 | H20: =IFERROR(VLOOKUP(F20,DYE!$A$3:$D$33,3,0),"") -> 0 | I20: =IFERROR(VLOOKUP(F20,DYE!$A$3:$D$33,4,0),"") -> 0 | K20: 2023-05-18 | L20: =IFERROR(VLOOKUP(K20,CON!$A$3:$B$33,2,0),"") -> 0 | N20: 2023-05-18 | O20: =IFERROR(VLOOKUP(N20,'EXIT CON'!$A$3:$B$33,2,0),"") -> 0
A21: 2023-05-19 | B21: =IFERROR(VLOOKUP(A21,KNT!$A$3:$D$33,2,0),"") -> 0 | C21: =IFERROR(VLOOKUP(A21,KNT!$A$3:$D$33,3,0),"") -> 0 | D21: =IFERROR(VLOOKUP(A21,KNT!$A$3:$D$33,4,0),"") -> 0 | F21: 2023-05-19 | G21: =IFERROR(VLOOKUP(F21,DYE!$A$3:$D$33,2,0),"") -> 0 | H21: =IFERROR(VLOOKUP(F21,DYE!$A$3:$D$33,3,0),"") -> 0 | I21: =IFERROR(VLOOKUP(F21,DYE!$A$3:$D$33,4,0),"") -> 0 | K21: 2023-05-19 | L21: =IFERROR(VLOOKUP(K21,CON!$A$3:$B$33,2,0),"") -> 0 | N21: 2023-05-19 | O21: =IFERROR(VLOOKUP(N21,'EXIT CON'!$A$3:$B$33,2,0),"") -> 0
A22: 2023-05-20 | B22: =IFERROR(VLOOKUP(A22,KNT!$A$3:$D$33,2,0),"") -> 0 | C22: =IFERROR(VLOOKUP(A22,KNT!$A$3:$D$33,3,0),"") -> 0 | D22: =IFERROR(VLOOKUP(A22,KNT!$A$3:$D$33,4,0),"") -> 0 | F22: 2023-05-20 | G22: =IFERROR(VLOOKUP(F22,DYE!$A$3:$D$33,2,0),"") -> 0 | H22: =IFERROR(VLOOKUP(F22,DYE!$A$3:$D$33,3,0),"") -> 0 | I22: =IFERROR(VLOOKUP(F22,DYE!$A$3:$D$33,4,0),"") -> 0 | K22: 2023-05-20 | L22: =IFERROR(VLOOKUP(K22,CON!$A$3:$B$33,2,0),"") -> 0 | N22: 2023-05-20 | O22: =IFERROR(VLOOKUP(N22,'EXIT CON'!$A$3:$B$33,2,0),"") -> 0
A23: 2023-05-21 | B23: =IFERROR(VLOOKUP(A23,KNT!$A$3:$D$33,2,0),"") -> 0 | C23: =IFERROR(VLOOKUP(A23,KNT!$A$3:$D$33,3,0),"") -> 0 | D23: =IFERROR(VLOOKUP(A23,KNT!$A$3:$D$33,4,0),"") -> 0 | F23: 2023-05-21 | G23: =IFERROR(VLOOKUP(F23,DYE!$A$3:$D$33,2,0),"") -> 0 | H23: =IFERROR(VLOOKUP(F23,DYE!$A$3:$D$33,3,0),"") -> 0 | I23: =IFERROR(VLOOKUP(F23,DYE!$A$3:$D$33,4,0),"") -> 0 | K23: 2023-05-21 | L23: =IFERROR(VLOOKUP(K23,CON!$A$3:$B$33,2,0),"") -> 0 | N23: 2023-05-21 | O23: =IFERROR(VLOOKUP(N23,'EXIT CON'!$A$3:$B$33,2,0),"") -> 0
A24: 2023-05-22 | B24: =IFERROR(VLOOKUP(A24,KNT!$A$3:$D$33,2,0),"") -> 0 | C24: =IFERROR(VLOOKUP(A24,KNT!$A$3:$D$33,3,0),"") -> 0 | D24: =IFERROR(VLOOKUP(A24,KNT!$A$3:$D$33,4,0),"") -> 0 | F24: 2023-05-22 | G24: =IFERROR(VLOOKUP(F24,DYE!$A$3:$D$33,2,0),"") -> 0 | H24: =IFERROR(VLOOKUP(F24,DYE!$A$3:$D$33,3,0),"") -> 0 | I24: =IFERROR(VLOOKUP(F24,DYE!$A$3:$D$33,4,0),"") -> 0 | K24: 2023-05-22 | L24: =IFERROR(VLOOKUP(K24,CON!$A$3:$B$33,2,0),"") -> 0 | N24: 2023-05-22 | O24: =IFERROR(VLOOKUP(N24,'EXIT CON'!$A$3:$B$33,2,0),"") -> 0
A25: 2023-05-23 | B25: =IFERROR(VLOOKUP(A25,KNT!$A$3:$D$33,2,0),"") -> 0 | C25: =IFERROR(VLOOKUP(A25,KNT!$A$3:$D$33,3,0),"") -> 0 | D25: =IFERROR(VLOOKUP(A25,KNT!$A$3:$D$33,4,0),"") -> 0 | F25: 2023-05-23 | G25: =IFERROR(VLOOKUP(F25,DYE!$A$3:$D$33,2,0),"") -> 0 | H25: =IFERROR(VLOOKUP(F25,DYE!$A$3:$D$33,3,0),"") -> 0 | I25: =IFERROR(VLOOKUP(F25,DYE!$A$3:$D$33,4,0),"") -> 0 | K25: 2023-05-23 | L25: =IFERROR(VLOOKUP(K25,CON!$A$3:$B$33,2,0),"") -> 0 | N25: 2023-05-23 | O25: =IFERROR(VLOOKUP(N25,'EXIT CON'!$A$3:$B$33,2,0),"") -> 0
A26: 2023-05-24 | B26: =IFERROR(VLOOKUP(A26,KNT!$A$3:$D$33,2,0),"") -> 0 | C26: =IFERROR(VLOOKUP(A26,KNT!$A$3:$D$33,3,0),"") -> 0 | D26: =IFERROR(VLOOKUP(A26,KNT!$A$3:$D$33,4,0),"") -> 0 | F26: 2023-05-24 | G26: =IFERROR(VLOOKUP(F26,DYE!$A$3:$D$33,2,0),"") -> 0 | H26: =IFERROR(VLOOKUP(F26,DYE!$A$3:$D$33,3,0),"") -> 0 | I26: =IFERROR(VLOOKUP(F26,DYE!$A$3:$D$33,4,0),"") -> 0 | K26: 2023-05-24 | L26: =IFERROR(VLOOKUP(K26,CON!$A$3:$B$33,2,0),"") -> 0 | N26: 2023-05-24 | O26: =IFERROR(VLOOKUP(N26,'EXIT CON'!$A$3:$B$33,2,0),"") -> 0
A27: 2023-05-25 | B27: =IFERROR(VLOOKUP(A27,KNT!$A$3:$D$33,2,0),"") -> 0 | C27: =IFERROR(VLOOKUP(A27,KNT!$A$3:$D$33,3,0),"") -> 0 | D27: =IFERROR(VLOOKUP(A27,KNT!$A$3:$D$33,4,0),"") -> 0 | F27: 2023-05-25 | G27: =IFERROR(VLOOKUP(F27,DYE!$A$3:$D$33,2,0),"") -> 0 | H27: =IFERROR(VLOOKUP(F27,DYE!$A$3:$D$33,3,0),"") -> 0 | I27: =IFERROR(VLOOKUP(F27,DYE!$A$3:$D$33,4,0),"") -> 0 | K27: 2023-05-25 | L27: =IFERROR(VLOOKUP(K27,CON!$A$3:$B$33,2,0),"") -> 0 | N27: 2023-05-25 | O27: =IFERROR(VLOOKUP(N27,'EXIT CON'!$A$3:$B$33,2,0),"") -> 0
A28: 2023-05-26 | B28: =IFERROR(VLOOKUP(A28,KNT!$A$3:$D$33,2,0),"") -> 0 | C28: =IFERROR(VLOOKUP(A28,KNT!$A$3:$D$33,3,0),"") -> 0 | D28: =IFERROR(VLOOKUP(A28,KNT!$A$3:$D$33,4,0),"") -> 0 | F28: 2023-05-26 | G28: =IFERROR(VLOOKUP(F28,DYE!$A$3:$D$33,2,0),"") -> 0 | H28: =IFERROR(VLOOKUP(F28,DYE!$A$3:$D$33,3,0),"") -> 0 | I28: =IFERROR(VLOOKUP(F28,DYE!$A$3:$D$33,4,0),"") -> 0 | K28: 2023-05-26 | L28: =IFERROR(VLOOKUP(K28,CON!$A$3:$B$33,2,0),"") -> 0 | N28: 2023-05-26 | O28: =IFERROR(VLOOKUP(N28,'EXIT CON'!$A$3:$B$33,2,0),"") -> 0
A29: 2023-05-27 | B29: =IFERROR(VLOOKUP(A29,KNT!$A$3:$D$33,2,0),"") -> 0 | C29: =IFERROR(VLOOKUP(A29,KNT!$A$3:$D$33,3,0),"") -> 0 | D29: =IFERROR(VLOOKUP(A29,KNT!$A$3:$D$33,4,0),"") -> 0 | F29: 2023-05-27 | G29: =IFERROR(VLOOKUP(F29,DYE!$A$3:$D$33,2,0),"") -> 0 | H29: =IFERROR(VLOOKUP(F29,DYE!$A$3:$D$33,3,0),"") -> 0 | I29: =IFERROR(VLOOKUP(F29,DYE!$A$3:$D$33,4,0),"") -> 0 | K29: 2023-05-27 | L29: =IFERROR(VLOOKUP(K29,CON!$A$3:$B$33,2,0),"") -> 0 | N29: 2023-05-27 | O29: =IFERROR(VLOOKUP(N29,'EXIT CON'!$A$3:$B$33,2,0),"") -> 0
A30: 2023-05-28 | B30: =IFERROR(VLOOKUP(A30,KNT!$A$3:$D$33,2,0),"") -> 0 | C30: =IFERROR(VLOOKUP(A30,KNT!$A$3:$D$33,3,0),"") -> 0 | D30: =IFERROR(VLOOKUP(A30,KNT!$A$3:$D$33,4,0),"") -> 0 | F30: 2023-05-28 | G30: =IFERROR(VLOOKUP(F30,DYE!$A$3:$D$33,2,0),"") -> 0 | H30: =IFERROR(VLOOKUP(F30,DYE!$A$3:$D$33,3,0),"") -> 0 | I30: =IFERROR(VLOOKUP(F30,DYE!$A$3:$D$33,4,0),"") -> 0 | K30: 2023-05-28 | L30: =IFERROR(VLOOKUP(K30,CON!$A$3:$B$33,2,0),"") -> 0 | N30: 2023-05-28 | O30: =IFERROR(VLOOKUP(N30,'EXIT CON'!$A$3:$B$33,2,0),"") -> 0
A31: 2023-05-29 | B31: =IFERROR(VLOOKUP(A31,KNT!$A$3:$D$33,2,0),"") -> 0 | C31: =IFERROR(VLOOKUP(A31,KNT!$A$3:$D$33,3,0),"") -> 0 | D31: =IFERROR(VLOOKUP(A31,KNT!$A$3:$D$33,4,0),"") -> 0 | F31: 2023-05-29 | G31: =IFERROR(VLOOKUP(F31,DYE!$A$3:$D$33,2,0),"") -> 0 | H31: =IFERROR(VLOOKUP(F31,DYE!$A$3:$D$33,3,0),"") -> 0 | I31: =IFERROR(VLOOKUP(F31,DYE!$A$3:$D$33,4,0),"") -> 0 | K31: 2023-05-29 | L31: =IFERROR(VLOOKUP(K31,CON!$A$3:$B$33,2,0),"") -> 0 | N31: 2023-05-29 | O31: =IFERROR(VLOOKUP(N31,'EXIT CON'!$A$3:$B$33,2,0),"") -> 0
A32: 2023-05-30 | B32: =IFERROR(VLOOKUP(A32,KNT!$A$3:$D$33,2,0),"") -> 0 | C32: =IFERROR(VLOOKUP(A32,KNT!$A$3:$D$33,3,0),"") -> 0 | D32: =IFERROR(VLOOKUP(A32,KNT!$A$3:$D$33,4,0),"") -> 0 | F32: 2023-05-30 | G32: =IFERROR(VLOOKUP(F32,DYE!$A$3:$D$33,2,0),"") -> 0 | H32: =IFERROR(VLOOKUP(F32,DYE!$A$3:$D$33,3,0),"") -> 0 | I32: =IFERROR(VLOOKUP(F32,DYE!$A$3:$D$33,4,0),"") -> 0 | K32: 2023-05-30 | L32: =IFERROR(VLOOKUP(K32,CON!$A$3:$B$33,2,0),"") -> 0 | N32: 2023-05-30 | O32: =IFERROR(VLOOKUP(N32,'EXIT CON'!$A$3:$B$33,2,0),"") -> 0
A33: 2023-05-31 | B33: =IFERROR(VLOOKUP(A33,KNT!$A$3:$D$33,2,0),"") -> 0 | C33: =IFERROR(VLOOKUP(A33,KNT!$A$3:$D$33,3,0),"") -> 0 | D33: =IFERROR(VLOOKUP(A33,KNT!$A$3:$D$33,4,0),"") -> 0 | F33: 2023-05-31 | G33: =IFERROR(VLOOKUP(F33,DYE!$A$3:$D$33,2,0),"") -> 0 | H33: =IFERROR(VLOOKUP(F33,DYE!$A$3:$D$33,3,0),"") -> 0 | I33: =IFERROR(VLOOKUP(F33,DYE!$A$3:$D$33,4,0),"") -> 0 | K33: 2023-05-31 | L33: =IFERROR(VLOOKUP(K33,CON!$A$3:$B$33,2,0),"") -> 0 | N33: 2023-05-31 | O33: =IFERROR(VLOOKUP(N33,'EXIT CON'!$A$3:$B$33,2,0),"") -> 0
A34: الاجمالي | B34: =SUM(B3:B33) -> 3936 | C34: =SUM(C3:C33) -> 3839 | D34: =SUM(D3:D33) -> 4997 | F34: الاجمالي | G34: =SUM(G3:G33) -> 8822 | H34: =SUM(H3:H33) -> 6430 | I34: =SUM(I3:I33) -> 5196 | K34: الاجمالي | L34: =SUM(L3:L33) -> 15791 | N34: الاجمالي | O34: =SUM(O3:O33) -> 18478
A35: اجمالي الورادي | B35: =SUM(B34:D34) -> 12772 | F35: اجمالي الورادي | G35: =SUM(G34:I34) -> 20448

Sheet KNT (hidden)
A1: إنتاج
A2: التاريخ | B2: وردية اولى | C2: وردية ثانية | D2: وردية ثالثة
A3: 2023-05-01 | B3: 2023 | C3: 1947 | D3: 2028
A4: 2023-05-02 | B4: 1913 | C4: 1892 | D4: 2969
A5: 2023-05-03
A6: 2023-05-04
A7: 2023-05-05
A8: 2023-05-06
A9: 2023-05-07
A10: 2023-05-08
A11: 2023-05-09
A12: 2023-05-10
A13: 2023-05-11
A14: 2023-05-12
A15: 2023-05-13
A16: 2023-05-14
A17: 2023-05-15
A18: 2023-05-16
A19: 2023-05-17
A20: 2023-05-18
A21: 2023-05-19
A22: 2023-05-20
A23: 2023-05-21
A24: 2023-05-22
A25: 2023-05-23
A26: 2023-05-24
A27: 2023-05-25
A28: 2023-05-26
A29: 2023-05-27
A30: 2023-05-28
A31: 2023-05-29
A32: 2023-05-30
A33: 2023-05-31
A34: الاجمالي | B34: =SUM(B3:B33) -> 3936 | C34: =SUM(C3:C33) -> 3839 | D34: =SUM(D3:D33) -> 4997
A35: اجمالي الورادي | B35: =SUM(B34,C34,D34) -> 12772

Sheet DYE (hidden)
A1: إنتاج
A2: التاريخ | B2: وردية اولى | C2: وردية ثانية | D2: وردية ثالثة
A3: 2023-05-01 | B3: 4484 | C3: 3814 | D3: 2786
A4: 2023-05-02 | B4: 4338 | C4: 2616 | D4: 2410
A5: 2023-05-03
A6: 2023-05-04
A7: 2023-05-05
A8: 2023-05-06
A9: 2023-05-07
A10: 2023-05-08
A11: 2023-05-09
A12: 2023-05-10
A13: 2023-05-11
A14: 2023-05-12
A15: 2023-05-13
A16: 2023-05-14
A17: 2023-05-15
A18: 2023-05-16
A19: 2023-05-17
A20: 2023-05-18
A21: 2023-05-19
A22: 2023-05-20
A23: 2023-05-21
A24: 2023-05-22
A25: 2023-05-23
A26: 2023-05-24
A27: 2023-05-25
A28: 2023-05-26
A29: 2023-05-27
A30: 2023-05-28
A31: 2023-05-29
A32: 2023-05-30
A33: 2023-05-31
A34: الاجمالي | B34: =SUM(B3:B33) -> 8822 | C34: =SUM(C3:C33) -> 6430 | D34: =SUM(D3:D33) -> 5196
A35: اجمالي الورادي | B35: =SUM(B34,C34,D34) -> 20448

Sheet CON (hidden)
A1: إنتاج
A2: التاريخ | B2: الانتاج
A3: 2023-05-01 | B3: 7211
A4: 2023-05-02 | B4: 8580
A5: 2023-05-03
A6: 2023-05-04
A7: 2023-05-05
A8: 2023-05-06
A9: 2023-05-07
A10: 2023-05-08
A11: 2023-05-09
A12: 2023-05-10
A13: 2023-05-11
A14: 2023-05-12
A15: 2023-05-13
A16: 2023-05-14
A17: 2023-05-15
A18: 2023-05-16
A19: 2023-05-17
A20: 2023-05-18
A21: 2023-05-19
A22: 2023-05-20
A23: 2023-05-21
A24: 2023-05-22
A25: 2023-05-23
A26: 2023-05-24
A27: 2023-05-25
A28: 2023-05-26
A29: 2023-05-27
A30: 2023-05-28
A31: 2023-05-29
A32: 2023-05-30
A33: 2023-05-31
A34: الاجمالي | B34: =SUM(B3:B33) -> 15791

Sheet EXIT CON (hidden)
A1: إنتاج
A2: التاريخ | B2: الانتاج
A3: 2023-05-01 | B3: 6825
A4: 2023-05-02 | B4: 11653
A5: 2023-05-03
A6: 2023-05-04
A7: 2023-05-05
A8: 2023-05-06
A9: 2023-05-07
A10: 2023-05-08
A11: 2023-05-09
A12: 2023-05-10
A13: 2023-05-11
A14: 2023-05-12
A15: 2023-05-13
A16: 2023-05-14
A17: 2023-05-15
A18: 2023-05-16
A19: 2023-05-17
A20: 2023-05-18
A21: 2023-05-19
A22: 2023-05-20
A23: 2023-05-21
A24: 2023-05-22
A25: 2023-05-23
A26: 2023-05-24
A27: 2023-05-25
A28: 2023-05-26
A29: 2023-05-27
A30: 2023-05-28
A31: 2023-05-29
A32: 2023-05-30
A33: 2023-05-31
A34: الاجمالي | B34: =SUM(B3:B33) -> 18478

Sheet KNTWIP (hidden)
A1: تحت التشغيل
A2: المسحوب | B2: المنسوج | C2: الباقي من الكمية
A3: 77589 | B3: 51674 | C3: =A3-B3 -> 25915
A5: جاهز لايعمل
A6: المطلوب سحبه من الغزل | B6: المسحوب الفعلي من الغزل | C6: الباقي من الطلب | D6: المنسوج | E6: الباقي من النسيج
A7: 2071 | B7: 2030 | C7: =A7-B7 -> 41 | D7: 0 | E7: =B7-D7 -> 2030

Sheet STOCK (hidden)
A1: مخزن
A2: 33151
A4: مخزن
A5: 502709
A7: مخزن
A8: 294497.12
A10: مخزن
A11: 1
A12: 44447
A13: 2
A14: 2779
A15: 3
A16: 5032
